fUST/lending_fUST_20250320
["ID","MTS","AMOUNT","RATE_DAILY","PERIOD"]
[356408898,1742413832716,-500.0,0.0002385,2]
[356408899,1742413832730,-393.72527737,0.0002385,2]
[356408900,1742413832742,-500.0,0.0002385,2]
[356408901,1742413832753,-221.69975341,0.0002385,2]
[356408902,1742413832766,-241.54587393,0.0002385,2]
[356408903,1742413832778,-189.96019065,0.0002385,2]
[356408904,1742413832790,-152.18893263,0.0002385,2]
[356408905,1742413832802,-624.79332172,0.0002385,2]
[356408906,1742413832814,-500.0,0.0002385,2]
[356408907,1742413832826,-528.7791108,0.0002385,2]
[356408908,1742413832838,-500.0,0.0002385,2]
[356408909,1742413832851,-500.0,0.0002385,2]
[356408910,1742413832864,-152.0,0.00023913,2]
[356408911,1742413832877,-1605.3896228,0.00024056,2]
[356408912,1742413832892,-824.8950106,0.00024079,2]
[356408913,1742413832905,-306.0,0.000241,2]
[356408914,1742413832917,-824.8950106,0.0002415,2]
[356408915,1742413832931,-153.0,0.000242,2]
[356408916,1742413832943,-153.0,0.000242,2]
[356408917,1742413832956,-153.0,0.000242,2]
[356408918,1742413832975,-153.0,0.000242,2]
[356408919,1742413832988,-833.92477148,0.00024308,2]
[356408920,1742413833001,-417.89091067,0.00024308,2]
[356408921,1742413833014,-160.0,0.00024308,2]
[356408922,1742413833026,-500.0,0.00024343,2]
[356408923,1742413833040,-413.41993427,0.00024361,2]
[356408924,1742413833054,-298.7007048,0.00024367,2]
[356408925,1742413833067,-2500.0,0.00024392,3]
[356408926,1742413833081,-2500.0,0.00024401,3]
[356408927,1742413833094,-2500.0,0.0002441,3]
[356408928,1742413833494,-2500.0,0.00024418,3]
[356408929,1742413833523,-2500.0,0.00024427,3]
[356408930,1742413833546,-200.0,0.0002443,13]
[356408931,1742413833556,-2500.0,0.00024436,3]
[356408932,1742413833565,-2500.0,0.00024445,3]
[356408933,1742413833575,-193.0,0.00024451,2]
[356408934,1742413833586,-2500.0,0.00024454,3]
[356408935,1742413833596,-500.0,0.00024461,2]
[356408936,1742413833607,-287.69056015,0.00024461,2]
[356408937,1742413833617,-2500.0,0.00024462,3]
[356408938,1742413833627,-2500.0,0.00024471,3]
[356408939,1742413833637,-2500.0,0.0002448,3]
[356408940,1742413833647,-2500.0,0.00024489,3]
[356408941,1742413833657,-274.332836,0.00024495,2]
[356408942,1742413833666,-2500.0,0.00024498,3]
[356408943,1742413833676,-153.0,0.000245,2]
[356408944,1742413833686,-2500.0,0.00024506,3]
[356408945,1742413833695,-274.33283596,0.0002451,2]
[356408946,1742413833705,-2500.0,0.00024515,3]
[356408947,1742413833715,-2500.0,0.00024524,3]
[356408948,1742413833727,-274.33283596,0.00024526,2]
[356408949,1742413833736,-2500.0,0.00024533,3]
[356408950,1742413833745,-824.8950106,0.00024537,2]
[356408951,1742413833755,-274.33283596,0.00024541,2]
[356408952,1742413833764,-2500.0,0.00024542,3]
[356408953,1742413833774,-2500.0,0.0002455,3]
[356408954,1742413833784,-274.33283596,0.00024556,2]
[356408955,1742413833793,-1151.8088111,0.00024556,2]
[356408956,1742413833803,-2500.0,0.00024559,3]
[356408957,1742413833813,-2500.0,0.00024568,3]
[356408958,1742413833823,-2500.0,0.00024577,3]
[356408959,1742413833833,-2500.0,0.00024586,3]
[356408960,1742413833843,-2500.0,0.00024594,3]
[356408961,1742413833853,-500.0,0.00024598,2]
[356408962,1742413833863,-500.0,0.00024599,120]
[356408963,1742413833872,-500.0,0.00024599,120]
[356408964,1742413833883,-500.0,0.00024599,120]
[356408965,1742413833896,-500.0,0.00024599,120]
[356408966,1742413833905,-500.0,0.00024599,120]
[356408967,1742413833915,-521.8930922,0.00024599,120]
[356408968,1742413833927,-781.91,0.00024599,120]
[356408969,1742413833936,-781.91,0.00024599,120]
[356408970,1742413833946,-781.91,0.00024599,120]
[356408971,1742413833955,-781.91,0.00024599,120]
[356408972,1742413833967,-781.91,0.00024599,120]
[356408973,1742413833979,-781.91,0.00024599,120]
[356408974,1742413833989,-781.91,0.00024599,120]
[356408975,1742413833999,-781.91,0.00024599,120]
[356408976,1742413834009,-781.91,0.00024599,120]
[356408977,1742413834020,-781.91,0.00024599,120]
[356408978,1742413834030,-781.91,0.00024599,120]
[356408979,1742413834040,-151.0,0.000246,8]
[356408980,1742413834051,-2500.0,0.00024603,3]
[356408981,1742413834060,-2500.0,0.00024612,3]
[356408982,1742413834070,-2500.0,0.00024621,3]
[356408983,1742413834080,-2500.0,0.0002463,3]
[356408984,1742413834090,-151.0,0.00024635,2]
[356408985,1742413834099,-2500.0,0.00024638,3]
[356408986,1742413834109,-411.44,0.0002464,3]
[356408987,1742413834119,-205.72,0.0002464,3]
[356408988,1742413834129,-617.21,0.0002464,3]
[356408989,1742413834139,-2500.0,0.00024647,3]
[356408990,1742413834149,-1688.23,0.0002465,120]
[356408991,1742413834159,-500.0,0.0002465,120]
[356408992,1742413834169,-500.0,0.0002465,120]
[356408993,1742413834179,-601.74,0.0002465,120]
[356408994,1742413834189,-511.34973761,0.0002465,120]
[356408995,1742413834198,-500.0,0.0002465,120]
[356408996,1742413834208,-222000.0,0.0002465,2]
[356408997,1742413834218,-19738.92962812,0.00024651,2]
[356408998,1742413834230,-2500.0,0.00024656,3]
[356408999,1742413834240,-2500.0,0.00024665,3]
[356409000,1742413834250,-781.91,0.00024669,120]
[356409001,1742413834264,-609.21317803,0.00024673,2]
[356409002,1742413834274,-500.0,0.00024673,2]
[356409003,1742413834284,-500.0,0.00024673,2]
[356409004,1742413834294,-500.0,0.00024673,2]
[356409005,1742413834304,-500.0,0.00024673,2]
[356409006,1742413834314,-500.0,0.00024673,2]
[356409007,1742413834324,-501.28920938,0.00024673,2]
[356409008,1742413834334,-500.0,0.00024673,2]
[356409009,1742413834345,-500.0,0.00024673,2]
[356409010,1742413834355,-502.43722086,0.00024673,2]
[356409011,1742413834365,-500.0,0.00024673,2]
[356409012,1742413834374,-266.56314839,0.00024673,2]
[356409013,1742413834384,-500.0,0.00024673,2]
[356409014,1742413834394,-500.0,0.00024673,2]
[356409015,1742413834404,-500.0,0.00024673,2]
[356409016,1742413834414,-160.83553482,0.00024673,2]
[356409017,1742413834423,-500.0,0.00024673,2]
[356409018,1742413834433,-500.0,0.00024673,2]
[356409019,1742413834443,-518.04381874,0.00024673,2]
[356409020,1742413834452,-500.0,0.00024673,2]
[356409021,1742413834462,-500.0,0.00024673,2]
[356409022,1742413834473,-562.81504506,0.00024673,2]
[356409023,1742413834483,-500.0,0.00024673,2]
[356409024,1742413834493,-500.0,0.00024673,2]
[356409025,1742413834502,-500.0,0.00024673,2]
[356409026,1742413834512,-452.03626924,0.00024673,2]
[356409027,1742413834522,-500.0,0.00024673,2]
[356409028,1742413834531,-500.0,0.00024673,2]
[356409029,1742413834541,-2500.0,0.00024674,3]
[356409030,1742413834551,-1684.232652,0.0002468,5]
[356409031,1742413834560,-2500.0,0.00024682,3]
[356409032,1742413834570,-2500.0,0.00024691,3]
[356409033,1742413834580,-160.0,0.00024691,3]
[356409034,1742413834590,-3000.0,0.000247,2]
[356409035,1742413834599,-2500.0,0.000247,3]
[356409036,1742413834609,-1000.0,0.000247,5]
[356409037,1742413834619,-151.0,0.000247,7]
[356409038,1742413834628,-151.0,0.000247,5]
[356409039,1742413834638,-151.0,0.000247,5]
[356409040,1742413834648,-151.0,0.000247,9]
[356409041,1742413834657,-1000.0,0.0002472,5]
[356409042,1742413834666,-1000.0,0.0002474,5]
[356409043,1742413834676,-273509.16759628,0.0002475,2]
[356409044,1742413834686,-1000.0,0.0002476,5]
[356409045,1742413834695,-423.09752316,0.00024773,2]
[356409046,1742413834705,-500.0,0.00024773,2]
[356409047,1742413834714,-500.0,0.00024773,2]
[356409048,1742413834724,-500.0,0.00024773,2]
[356409049,1742413834733,-1000.0,0.0002478,5]
[356409050,1742413834742,-541.0,0.0002479,2]
[356409051,1742413834752,-2267.0,0.0002479,2]
[356409052,1742413834761,-1916.0,0.0002479,2]
[356409053,1742413834770,-1688.23,0.00024799,120]
[356409054,1742413834780,-1688.23,0.00024799,120]
[356409055,1742413834790,-1688.23,0.00024799,120]
[356409056,1742413834799,-1688.23,0.00024799,120]
[356409057,1742413834809,-1688.23,0.00024799,120]
[356409058,1742413834818,-1688.23,0.00024799,120]
[356409059,1742413834828,-1688.23,0.00024799,120]
[356409060,1742413834837,-1688.23,0.00024799,120]
[356409061,1742413834847,-1688.23,0.00024799,120]
[356409062,1742413834856,-1688.23,0.00024799,120]
[356409063,1742413834866,-1688.23,0.00024799,120]
[356409064,1742413834876,-500.0,0.00024799,120]
[356409065,1742413834888,-500.0,0.00024799,120]
[356409066,1742413834898,-500.0,0.00024799,120]
[356409067,1742413834908,-435.29,0.00024799,120]
[356409068,1742413834917,-500.0,0.00024799,120]
[356409069,1742413834927,-505.31527877,0.00024799,120]
[356409070,1742413834938,-601.74,0.00024799,120]
[356409071,1742413834949,-601.74,0.00024799,120]
[356409072,1742413834959,-601.74,0.00024799,120]
[356409073,1742413834971,-601.74,0.00024799,120]
[356409074,1742413834983,-601.74,0.00024799,120]
[356409075,1742413834994,-601.74,0.00024799,120]
[356409076,1742413835003,-601.74,0.00024799,120]
[356409077,1742413835013,-601.74,0.00024799,120]
[356409078,1742413835022,-601.74,0.00024799,120]
[356409079,1742413835031,-601.74,0.00024799,120]
[356409080,1742413835041,-601.74,0.00024799,120]
[356409081,1742413835051,-500.0,0.00024799,120]
[356409082,1742413835060,-500.0,0.00024799,120]
[356409083,1742413835070,-500.0,0.00024799,120]
[356409084,1742413835079,-500.0,0.00024799,120]
[356409085,1742413835089,-693.0,0.000248,11]
[356409086,1742413835098,-1000.0,0.000248,5]
[356409087,1742413835108,-173.45859828,0.000248,2]
[356409088,1742413835118,-31801.8671221,0.000248,2]
[356409089,1742413835128,-151.0,0.000248,5]
[356409090,1742413835138,-151.0,0.000248,9]
[356409091,1742413835148,-151.0,0.000248,5]
[356409092,1742413835158,-151.0,0.000248,6]
[356409093,1742413835169,-153.0,0.00024849,2]
[356409094,1742413835179,-1688.23,0.00024872,120]
[356409095,1742413835188,-601.74,0.00024872,120]
[356409096,1742413835198,-500.0,0.00024872,2]
[356409097,1742413835208,-507.0,0.00024873,60]
[356409098,1742413835218,-579.5413406,0.00024873,2]
[356409099,1742413835229,-500.0,0.00024873,2]
[356409100,1742413835239,-206.61397144,0.00024873,2]
[356409101,1742413835249,-500.0,0.00024873,2]
[356409102,1742413835259,-2446.29747093,0.00024889,2]
[356409103,1742413835268,-1688.23,0.00024899,120]
[356409104,1742413835278,-1688.23,0.00024899,120]
[356409105,1742413835288,-1688.23,0.00024899,120]
[356409106,1742413835298,-1688.23,0.00024899,120]
[356409107,1742413835308,-1688.23,0.00024899,120]
[356409108,1742413835317,-1688.23,0.00024899,120]
[356409109,1742413835327,-1688.23,0.00024899,120]
[356409110,1742413835337,-1688.23,0.00024899,120]
[356409111,1742413835347,-1688.23,0.00024899,120]
[356409112,1742413835356,-1688.23,0.00024899,120]
[356409113,1742413835367,-1688.2879333,0.00024899,120]
[356409114,1742413835377,-781.91,0.00024899,120]
[356409115,1742413835386,-781.91,0.00024899,120]
[356409116,1742413835396,-781.91,0.00024899,120]
[356409117,1742413835406,-781.91,0.00024899,120]
[356409118,1742413835415,-781.91,0.00024899,120]
[356409119,1742413835425,-781.91,0.00024899,120]
[356409120,1742413835434,-781.91,0.00024899,120]
[356409121,1742413835443,-781.91,0.00024899,120]
[356409122,1742413835452,-781.91,0.00024899,120]
[356409123,1742413835462,-781.91,0.00024899,120]
[356409124,1742413835472,-781.91,0.00024899,120]
[356409125,1742413835482,-782.03,0.00024899,120]
[356409126,1742413835491,-601.74,0.00024899,120]
[356409127,1742413835501,-601.74,0.00024899,120]
[356409128,1742413835510,-601.74,0.00024899,120]
[356409129,1742413835520,-601.74,0.00024899,120]
[356409130,1742413835529,-601.74,0.00024899,120]
[356409131,1742413835538,-601.74,0.00024899,120]
[356409132,1742413835548,-601.74,0.00024899,120]
[356409133,1742413835557,-601.74,0.00024899,120]
[356409134,1742413835567,-601.74,0.00024899,120]
[356409135,1742413835576,-601.74,0.00024899,120]
[356409136,1742413835586,-601.96742106,0.00024899,120]
[356409137,1742413835596,-500.0,0.000249,2]
[356409138,1742413835606,-249.8,0.000249,2]
[356409139,1742413835615,-151.0,0.000249,6]
[356409140,1742413835625,-151.0,0.000249,5]
[356409141,1742413835635,-151.0,0.000249,5]
[356409142,1742413835644,-151.0,0.000249,6]
[356409143,1742413835654,-151.0,0.000249,6]
[356409144,1742413835664,-1014.88,0.000249,2]
[356409145,1742413835673,-806744.963844,0.000249,2]
[356409146,1742413835683,-13369.49738046,0.000249,4]
[356409147,1742413835693,-151.0,0.000249,6]
[356409148,1742413835702,-1000.0,0.00024932,2]
[356409149,1742413835712,-500.0,0.00024973,2]
[356409150,1742413835722,-150.0,0.00024973,2]
[356409151,1742413835731,-1079.198205,0.0002498,5]
[356409152,1742413835741,-14677.7848256,0.0002499,2]
[356409153,1742413835750,-1007.66267674,0.00025,2]
[356409154,1742413835760,-171771.24117192,0.00025,7]
[356409155,1742413835769,-1050.84350445,0.00025,2]
[356409156,1742413835779,-2588.36365192,0.00025,2]
[356409157,1742413835788,-205.37003483,0.00025,2]
[356409158,1742413835798,-10364.0,0.00025,2]
[356409159,1742413835807,-835.99899667,0.00025,2]
[356409160,1742413835816,-9943.62646729,0.00025,7]
[356409161,1742413835826,-72927.82048626,0.00025,7]
[356409162,1742413835836,-342.05923206,0.00025,30]
[356409163,1742413835845,-200.0,0.00025,10]
[356409164,1742413835855,-699.0,0.00025,120]
[356409165,1742413835866,-600.0,0.00025,2]
[356409166,1742413835877,-504.63,0.00025,30]
[356409167,1742413835889,-10000.0,0.00025,30]
[356409168,1742413835899,-400.0,0.00025,2]
[356409169,1742413835910,-884.14,0.00025,7]
[356409170,1742413835919,-199.18240517,0.00025,2]
[356409171,1742413835930,-40547.89847404,0.00025,2]
[356409172,1742413835940,-833.92477148,0.00025,7]
[356409173,1742413835948,-1000.0,0.00025,5]
[356409174,1742413835958,-1956.423341,0.00025,7]
[356409175,1742413835968,-1956.423341,0.00025,7]
[356409176,1742413835979,-152.115032,0.00025,7]
[356409177,1742413835989,-151.0,0.00025,7]
[356409178,1742413835999,-151.0,0.00025,7]
[356409179,1742413836008,-151.0,0.00025,7]
[356409180,1742413836018,-307.398322,0.00025,7]
[356409181,1742413836027,-307.398322,0.00025,7]
[356409182,1742413836038,-151.0,0.00025,7]
[356409183,1742413836047,-500.0,0.00025,2]
[356409184,1742413836056,-246.0,0.00025001,2]
[356409185,1742413836066,-500.0,0.00025037,2]
[356409186,1742413836075,-1000.0,0.00025068,2]
[356409187,1742413836085,-150.32,0.00025082,2]
[356409188,1742413836094,-500.0,0.00025082,2]
[356409189,1742413836104,-500.0,0.00025082,2]
[356409190,1742413836113,-150.32,0.00025082,2]
[356409191,1742413836122,-150.32,0.00025082,2]
[356409192,1742413836132,-150.32,0.00025082,2]
[356409193,1742413836141,-500.0,0.00025082,2]
[356409194,1742413836151,-150.32,0.00025082,2]
[356409195,1742413836161,-150.32,0.00025109,2]
[356409196,1742413836170,-500.0,0.00025109,2]
[356409197,1742413836179,-500.0,0.00025109,2]
[356409198,1742413836189,-150.32,0.00025109,2]
[356409199,1742413836198,-500.0,0.00025109,2]
[356409200,1742413836208,-202.28025316,0.00025109,2]
[356409201,1742413836217,-199.36,0.00025137,2]
[356409202,1742413836227,-500.0,0.00025137,2]
[356409203,1742413836237,-500.0,0.00025137,2]
[356409204,1742413836247,-150.32,0.00025137,2]
[356409205,1742413836256,-500.0,0.00025137,2]
[356409206,1742413836266,-338.86845947,0.00025146,2]
[356409207,1742413836275,-500.0,0.00025164,2]
[356409208,1742413836285,-543.42653276,0.00025164,2]
[356409209,1742413836295,-278.58477762,0.00025164,2]
[356409210,1742413836304,-958.96705158,0.00025164,2]
[356409211,1742413836315,-500.0,0.00025174,2]
[356409212,1742413836325,-153.0,0.00025178,2]
[356409213,1742413836335,-153.0,0.00025178,2]
[356409214,1742413836346,-153.0,0.00025178,2]
[356409215,1742413836357,-160.4474878,0.00025178,2]
[356409216,1742413836368,-500.0,0.00025192,2]
[356409217,1742413836379,-2458.71754946,0.00025205,2]
[356409218,1742413836389,-1000.0,0.00025205,2]
[356409219,1742413836400,-500.0,0.00025219,2]
[356409220,1742413836411,-500.0,0.00025246,2]
[356409221,1742413836421,-500.0,0.00025274,2]
[356409222,1742413836432,-500.0,0.00025301,2]
[356409223,1742413836443,-500.0,0.00025311,2]
[356409224,1742413836454,-860.67668994,0.00025329,2]
[356409225,1742413836465,-1000.0,0.00025342,2]
[356409226,1742413836480,-739.65326387,0.0002535,15]
[356409227,1742413836494,-33364.8833485,0.0002536,2]
[356409228,1742413836505,-1956.423341,0.0002536,7]
[356409229,1742413836517,-1956.423341,0.0002536,7]
[356409230,1742413836531,-151.0,0.0002536,7]
[356409231,1742413836542,-900.0,0.00025469,3]
[356409232,1742413836553,-151.0,0.00025479,7]
[356409233,1742413836565,-151.0,0.00025479,7]
[356409234,1742413836575,-307.398322,0.00025479,7]
[356409235,1742413836586,-307.398322,0.00025479,7]
[356409236,1742413836597,-1000.0,0.00025479,2]
[356409237,1742413836607,-1000.0,0.000255,2]
[356409238,1742413836617,-500.0,0.000255,2]
[356409239,1742413836628,-250.0,0.00025521,2]
[356409240,1742413836638,-314.0,0.00025563,2]
[356409241,1742413836649,-500.0,0.00025585,2]
[356409242,1742413836659,-1000.0,0.00025616,2]
[356409243,1742413836670,-500.0,0.00025624,2]
[356409244,1742413836680,-13369.49738046,0.00025659,4]
[356409245,1742413836691,-420.0,0.00025692,2]
[356409246,1742413836701,-1000.0,0.00025753,2]
[356409247,1742413836712,-500.0,0.00025859,2]
[356409248,1742413836723,-1000.0,0.0002589,2]
[356409249,1742413836741,-514.78754263,0.00026,2]
[356409250,1742413836751,-19900.0,0.00026,2]
[356409251,1742413836761,-23495.43117929,0.00026,10]
[356409252,1742413836771,-500.0,0.00026,2]
[356409253,1742413836781,-822.88,0.0002601,3]
[356409254,1742413836791,-411.44,0.0002601,3]
[356409255,1742413836801,-3455.0,0.00026027,60]
[356409256,1742413836810,-1000.0,0.00026027,2]
[356409257,1742413836991,-350.0,0.00026068,2]
[356409258,1742413837003,-156.9426809,0.000261,60]
[356409259,1742413837014,-500.0,0.00026133,2]
[356409260,1742413837025,-200.0,0.0002614,18]
[356409261,1742413837037,-1000.0,0.00026164,2]
[356409262,1742413837047,-693.0,0.000263,12]
[356409263,1742413837056,-1000.0,0.00026301,2]
[356409264,1742413837067,-500.0,0.00026407,2]
[356409265,1742413837079,-13369.49738046,0.00026417,4]
[356409266,1742413837090,-1000.0,0.00026438,2]
[356409267,1742413837100,-500.0,0.000265,2]
[356409268,1742413837110,-450.0,0.00026616,2]
[356409269,1742413837120,-500.0,0.00026681,2]
[356409270,1742413837131,-884.14,0.000267,7]
[356409271,1742413837142,-500.0,0.00026955,2]
[356409272,1742413837153,-500.0,0.00026972,2]
[356409273,1742413837164,-3639.58576795,0.00027,2]
[356409274,1742413837174,-337.85722874,0.00027,2]
[356409275,1742413837185,-432.10729,0.00027,120]
[356409276,1742413837196,-200.0,0.00027,120]
[356409277,1742413837207,-200.0,0.00027,120]
[356409278,1742413837217,-500.0,0.00027,120]
[356409279,1742413837231,-236.53509,0.00027,120]
[356409280,1742413837241,-500.0,0.00027,2]
[356409281,1742413837252,-550.0,0.00027164,2]
[356409282,1742413837262,-13369.49738046,0.00027176,4]
[356409283,1742413837271,-500.0,0.00027229,2]
[356409284,1742413837281,-884.0,0.00027397,2]
[356409285,1742413837291,-1000.0,0.00027397,5]
[356409286,1742413837301,-1000.0,0.00027397,5]
[356409287,1742413837311,-1000.0,0.00027397,5]
[356409288,1742413837321,-1000.0,0.00027397,5]
[356409289,1742413837331,-1000.0,0.00027397,5]
[356409290,1742413837341,-334.25500489,0.00027397,5]
[356409291,1742413837352,-183.368106,0.00027397,120]
[356409292,1742413837363,-884.0,0.00027424,2]
[356409293,1742413837372,-884.0,0.00027452,2]
[356409294,1742413837383,-884.0,0.00027479,2]
[356409295,1742413837393,-44772.43821084,0.000275,2]
[356409296,1742413837403,-802.08910543,0.000275,30]
[356409297,1742413837414,-500.0,0.000275,2]
[356409298,1742413837424,-413.4199342,0.00027502,2]
[356409299,1742413837434,-884.0,0.00027507,2]
[356409300,1742413837446,-884.0,0.00027534,2]
[356409301,1742413837456,-884.0,0.00027561,2]
[356409302,1742413837466,-884.0,0.00027589,2]
[356409303,1742413837482,-884.0,0.00027616,2]
[356409304,1742413837492,-884.0,0.00027644,2]
[356409305,1742413837504,-884.0,0.00027671,2]
[356409306,1742413837514,-884.0,0.00027698,2]
[356409307,1742413837524,-619.11161008,0.00027712,5]
[356409308,1742413837534,-884.0,0.00027726,2]
[356409309,1742413837544,-884.0,0.00027753,2]
[356409310,1742413837554,-500.0,0.00027777,2]
[356409311,1742413837564,-884.0,0.00027781,2]
[356409312,1742413837574,-693.0,0.000278,13]
[356409313,1742413837583,-884.0,0.00027808,2]
[356409314,1742413837594,-884.0,0.00027835,2]
[356409315,1742413837603,-200.0,0.0002785,22]
[356409316,1742413837613,-884.0,0.00027863,2]
[356409317,1742413837624,-587.0,0.00027871,2]
[356409318,1742413837633,-884.0,0.0002789,2]
[356409319,1742413837643,-889.51257595,0.00027918,2]
[356409320,1742413837654,-13369.49738046,0.00027934,4]
[356409321,1742413837664,-1956.423341,0.00027935,7]
[356409322,1742413837675,-1956.423341,0.00027935,7]
[356409323,1742413837685,-151.0,0.00027935,7]
[356409325,1742413837695,-307.398322,0.00027935,7]
[356409326,1742413837706,-307.398322,0.00027935,7]
[356409328,1742413837716,-151.0,0.00027935,7]
[356409329,1742413837729,-3941.45371188,0.0002799,2]
[356409331,1742413837777,-28350.34910758,0.0002799,2]
[356409333,1742413837791,-1180.20276006,0.0002799,7]
[356409335,1742413837801,-406.03871499,0.00028,30]
[356409337,1742413837811,-1000.0,0.00028,120]
[356409339,1742413837822,-500.0,0.00028,2]
[356409341,1742413837833,-190.18366155,0.00028,10]
[356409343,1742413837843,-500.0,0.00028,10]
[356409345,1742413837853,-504.49962027,0.00028,10]
[356409347,1742413837863,-500.0,0.00028,10]
[356409349,1742413837873,-425.99618592,0.00028,10]
[356409352,1742413837884,-500.0,0.00028,10]
[356409355,1742413837896,-240.24683501,0.00028,10]
[356409358,1742413837908,-500.0,0.00028,10]
[356409360,1742413837919,-164.6576733,0.00028,10]
[356409364,1742413837929,-500.0,0.00028,10]
[356409366,1742413837939,-500.0,0.00028,10]
[356409369,1742413837951,-500.0,0.00028,10]
[356409372,1742413837961,-190.0,0.00028,10]
[356409375,1742413837971,-499.3,0.00028,10]
[356409378,1742413837986,-500.0,0.00028,10]
[356409381,1742413837997,-499.3,0.00028,10]
[356409384,1742413838006,-500.0,0.00028051,2]
[356409387,1742413838017,-1500.0,0.00028232,2]
[356409390,1742413838027,-232.10736,0.000283,120]
[356409393,1742413838039,-234.29331,0.000283,120]
[356409396,1742413838048,-884.14,0.000283,7]
[356409399,1742413838058,-500.0,0.00028392,5]
[356409401,1742413838068,-432.10729,0.000284,120]
[356409403,1742413838078,-813.89715399,0.000285,7]
[356409407,1742413838147,-2500.0,0.00024383,3]
[356409409,1742413838156,-261.59191846,0.00024532,2]
[356409410,1742413838166,-752.09584715,0.000285,7]
[356409411,1742413838176,-500.0,0.000285,2]
[356409412,1742413838186,-2891.29371124,0.00028527,2]
[356409413,1742413838195,-13369.49738046,0.00028693,5]
[356409414,1742413838205,-165.81870288,0.000288,7]
[356409415,1742413838215,-1826.4642746,0.000289,2]
[356409416,1742413838228,-160.0,0.00028963,3]
[356409417,1742413838237,-500.0,0.00028973,5]
[356409418,1742413838247,-2000.0,0.00029,2]
[356409419,1742413838257,-868.22409877,0.00029,2]
[356409420,1742413838267,-341.38464,0.00029,120]
[356409421,1742413838276,-341.38466,0.00029,120]
[356409422,1742413838286,-112785.66961383,0.00029,7]
[356409423,1742413838296,-30942.57515261,0.00029,7]
[356409424,1742413838307,-2000.0,0.00029,7]
[356409425,1742413838319,-34488.09406025,0.00029,7]
[356409426,1742413838336,-17621.38296853,0.00029,7]
[356409427,1742413838347,-3102.85864947,0.00029,7]
[356409460,1742413840469,-300.06562164,0.00027397,2]
[356409462,1742413840481,-1595.92437836,0.00029,7]
[356409464,1742413840494,-2808.88207405,0.00029,7]
[356409618,1742414829923,1114.0,3.9e-05,120]
[356409651,1742415032447,-160.0,0.00023264,2]
[356409653,1742415032459,-160.0,0.00023269,2]
[356409654,1742415032470,-8769.3315129,0.00023298,2]
[356409656,1742415032480,-833.92477148,0.00023736,2]
[356409658,1742415032489,-300.0,0.00023742,2]
[356409660,1742415032499,-417.89091067,0.00023743,2]
[356409661,1742415032508,-152.0,0.0002413,2]
[356409662,1742415032517,-310.06495065,0.00024186,2]
[356409663,1742415032527,-2500.0,0.00024225,3]
[356409664,1742415032537,-2500.0,0.00024234,3]
[356409665,1742415032546,-2500.0,0.00024242,3]
[356409666,1742415032555,-2255.99,0.0002425,120]
[356409667,1742415032564,-500.0,0.0002425,120]
[356409668,1742415032574,-2500.0,0.00024251,3]
[356409669,1742415032583,-833.92477148,0.00024251,3]
[356409670,1742415032593,-2500.0,0.0002426,3]
[356409671,1742415032602,-2500.0,0.00024269,3]